[Event "IM Marmaris Karia IV 2019"]
[Site "Marmaris"]
[Date "2019.01.29"]
[Round "6.4"]
[White "Darban, Morteza"]
[Black "Mammadova, Narmin"]
[Result "0-1"]
[ECO "C13"]
[WhiteElo "2333"]
[BlackElo "2219"]
[Annotator "NA"]
[PlyCount "92"]
[EventDate "2019.01.27"]
[EventType "schev"]
[EventCountry "TUR"]
[SourceTitle "playchess.com"]
[Source "ChessBase"]
[SourceQuality "1"]
[TimeControl "5400+30"]

1. d4 {[%emt 0:00:30]} d5 {[%emt 0:01:30]} 2. Nc3 {[%emt 0:01:30]} Nf6 {[%emt 0:00:30]} 3. Bg5 {[%emt 0:00:00]} c6 {[%emt 0:02:30]} 4. Bxf6 {[%emt 0:03:00]} gxf6 {[%emt 0:00:30]} 5. e4 {[%emt 0:02:30]} e6 {[%emt 0:00:30]} 6. Nf3 {[%emt 0:00:30]} Be7 {[%emt 0:02:30]} 7. Bd3 {[%emt 0:01:30]} dxe4 {[%emt 0:01:30]} 8. Nxe4 {[%emt 0:00:00]} b6 {[%emt 0:00:00]} 9. Qe2 {[%emt 0:04:00]} Bb7 {[%emt 0:01:00]} 10. O-O-O {[%emt 0:00:30]} Qc7 {[%emt 0:02:30]} 11. Kb1 {[%emt 0:00:00]} Nd7 {[%emt 0:01:30]} 12. g3 {[%emt 0:01:00]} O-O-O {[%emt 0:01:30]} 13. c4 {[%emt 0:00:30]} Kb8 {[%emt 0:07:30]} 14. Rc1 {[%emt 0:07:30]} c5 {[%emt 0:04:30]} 15. Rhd1 {[%emt 0:02:30]} cxd4 {[%emt 0:10:30]} 16. Nxd4 {[%emt 0:00:30]} Nc5 {[%emt 0:01:30]} 17. Nxc5 {[%emt 0:06:30]} Bxc5 {[%emt 0:00:30]} 18. Nb5 {[%emt 0:00:30]} Qc6 {[%emt 0:07:30]} 19. Nc3 {[%emt 0:00:30]} f5 {[%emt 0:01:30]} 20. a3 {[%emt 0:01:30]} a6 {[%emt 0:04:30]} 21. f4 {[%emt 0:00:30]} Bd4 {[%emt 0:01:30]} 22. Ka2 {[%emt 0:03:30]} Ka7 {[%emt 0:00:30]} 23. Qc2 {[%emt 0:03:30]} h5 {[%emt 0:02:30]} 24. Bf1 {[%emt 0:07:30]} Bf6 {[%emt 0:07:30]} 25. Rxd8 {[%emt 0:00:30]} Rxd8 {[%emt 0:05:30]} 26. Rd1 {[%emt 0:03:30]} Rxd1 {[%emt 0:00:30]} 27. Nxd1 {[%emt 0:00:30]} Qc5 {[%emt 0:06:30]} 28. Bd3 {[%emt 0:05:30]} h4 {[%emt 0:02:30]} 29. Qf2 {[%emt 0:01:30]} Qd6 {[%emt 0:02:30]} 30. Qe2 {[%emt 0:01:30]} hxg3 {[%emt 0:00:30]} 31. hxg3 {[%emt 0:00:00]} Bd4 {[%emt 0:02:04]} 32. Qc2 {[%emt 0:06:00]} Qc6 {[%emt 0:01:01]} 33. Qb3 {[%emt 0:05:30]} Qg2 {[%emt 0:03:45]} 34. Bc2 {[%emt 0:01:30]} Qg1 {[%emt 0:03:33]} 35. Bb1 {[%emt 0:06:30]} Qe1 {[%emt 0:03:17]} 36. Bc2 {[%emt 0:00:30]} Qd2 $17 {[%emt 0:03:35]} 37. Kb1 {[%emt 0:02:30]} Bc5 {[%emt 0:02:07]} 38. Ka2 {[%emt 0:03:30]} Qg2 {[%emt 0:00:52]} 39. Kb1 {[%emt 0:02:23]} Bf3 {[%emt 0:00:34]} 40. Qa4 {[%emt 0:01:14]} Bc6 {[%emt 0:01:34]} 41. Qb3 {[%emt 0:00:02]} Kb7 {[%emt 0:01:02]} 42. Ka2 {[%emt 0:00:07]} Kc7 {[%emt 0:00:23]} 43. Bb1 {[%emt 0:01:45]} Bf3 {[%emt 0:01:07]} 44. Qc2 {[%emt 0:01:19]} Qxg3 {[%emt 0:00:42]} 45. Qd2 {[%emt 0:00:04]} Bc6 {[%emt 0:00:57]} 46. b4 {[%emt 0:00:26]} Bd6 {[%emt 0:00:37]} 0-1

[Event "IM Marmaris Karia IV 2019"]
[Site "Marmaris"]
[Date "2019.01.29"]
[Round "6.5"]
[White "Haussernot, Cecile"]
[Black "Alaz, Ahmet Efekan"]
[Result "1/2-1/2"]
[ECO "D00"]
[WhiteElo "2157"]
[BlackElo "2218"]
[Annotator "NA"]
[PlyCount "103"]
[EventDate "2019.01.27"]
[EventType "schev"]
[EventCountry "TUR"]
[SourceTitle "playchess.com"]
[Source "ChessBase"]
[SourceQuality "1"]
[TimeControl "5400+30"]

1. d4 {[%emt 0:05:30]} d5 {[%emt 0:00:30]} 2. Bf4 {[%emt 0:00:30]} Nf6 {[%emt 0:00:30]} 3. e3 {[%emt 0:00:30]} c5 {[%emt 0:02:30]} 4. c3 {[%emt 0:00:30]} Nc6 {[%emt 0:00:30]} 5. Nd2 {[%emt 0:00:00]} Bf5 {[%emt 0:03:30]} 6. Ngf3 {[%emt 0:00:00]} e6 {[%emt 0:00:00]} 7. Qb3 {[%emt 0:01:30]} Qb6 {[%emt 0:04:00]} 8. Qxb6 {[%emt 0:02:30]} axb6 {[%emt 0:00:00]} 9. Bb5 {[%emt 0:00:30]} Nd7 {[%emt 0:02:00]} 10. Ne5 {[%emt 0:01:30]} Ndxe5 {[%emt 0:05:30]} 11. Bxe5 {[%emt 0:00:30]} Kd7 {[%emt 0:04:30]} 12. O-O {[%emt 0:05:30]} f6 {[%emt 0:18:30]} 13. Bg3 {[%emt 0:00:30]} Bd6 {[%emt 0:08:30]} 14. f3 {[%emt 0:04:30]} cxd4 {[%emt 0:13:30]} 15. exd4 {[%emt 0:02:30]} Bxg3 {[%emt 0:04:30]} 16. hxg3 {[%emt 0:00:00]} Kd6 {[%emt 0:00:30]} 17. g4 {[%emt 0:03:00]} Bg6 {[%emt 0:00:00]} 18. f4 {[%emt 0:01:30]} h5 {[%emt 0:03:00]} 19. g5 {[%emt 0:05:30]} Nd8 {[%emt 0:04:30]} 20. Nf3 {[%emt 0:01:30]} Be4 {[%emt 0:01:30]} 21. Nd2 {[%emt 0:05:30]} Bf5 {[%emt 0:01:30]} 22. c4 {[%emt 0:00:30]} Nc6 {[%emt 0:02:26]} 23. Nf3 {[%emt 0:00:30]} Be4 {[%emt 0:08:31]} 24. Bxc6 {[%emt 0:02:30]} bxc6 {[%emt 0:00:04]} 25. Nd2 {[%emt 0:01:30]} Bd3 {[%emt 0:00:22]} 26. Rfc1 {[%emt 0:00:00]} Bxc4 {[%emt 0:04:24]} 27. Nxc4+ {[%emt 0:00:00]} dxc4 {[%emt 0:00:01]} 28. gxf6 {[%emt 0:00:30]} gxf6 {[%emt 0:00:40]} 29. Rxc4 {[%emt 0:00:00]} Ra5 {[%emt 0:03:59]} 30. Rac1 {[%emt 0:00:00]} Rc8 {[%emt 0:00:18]} 31. a3 {[%emt 0:02:30]} Rb5 {[%emt 0:00:42]} 32. b4 {[%emt 0:00:30]} Rf5 {[%emt 0:01:26]} 33. a4 {[%emt 0:00:00]} Rxf4 {[%emt 0:02:19]} 34. b5 {[%emt 0:00:00]} Kd5 {[%emt 0:00:55]} 35. Rxc6 {[%emt 0:03:30]} Rb8 {[%emt 0:01:01]} 36. Re1 {[%emt 0:04:30]} e5 {[%emt 0:00:33]} 37. dxe5 {[%emt 0:00:30]} fxe5 {[%emt 0:00:05]} 38. Rh6 {[%emt 0:00:30]} Rxa4 {[%emt 0:01:05]} 39. Rxh5 {[%emt 0:00:00]} Re4 {[%emt 0:00:28]} 40. Rc1 {[%emt 0:00:00]} Rg8 {[%emt 0:00:33]} 41. Rc2 {[%emt 0:04:30]} Rb4 {[%emt 0:00:29]} 42. Rd2+ {[%emt 0:00:30]} Rd4 {[%emt 0:00:15]} 43. Rc2 {[%emt 0:00:30]} Rg6 {[%emt 0:00:40]} 44. Rh8 {[%emt 0:01:30]} Ke4 {[%emt 0:00:41]} 45. Re2+ {[%emt 0:01:30]} Kd5 {[%emt 0:00:22]} 46. Rc2 {[%emt 0:00:30]} Re6 {[%emt 0:00:34]} 47. Kf2 {[%emt 0:02:30]} Rf6+ {[%emt 0:00:20]} 48. Ke3 {[%emt 0:00:00]} Re4+ {[%emt 0:00:13]} 49. Kd3 {[%emt 0:00:00]} Rd4+ {[%emt 0:00:17]} 50. Ke3 {[%emt 0:00:30]} Re4+ {[%emt 0:00:54]} 51. Kd3 {[%emt 0:00:00]} Rd4+ {[%emt 0:00:28]} 52. Ke3 {[%emt 0:00:00]} 1/2-1/2

[Event "IM Marmaris Karia IV 2019"]
[Site "Marmaris"]
[Date "2019.01.30"]
[Round "8.2"]
[White "Darban, Morteza"]
[Black "Tanriverdi, Enes"]
[Result "0-1"]
[ECO "B25"]
[WhiteElo "2333"]
[BlackElo "2283"]
[Annotator "NA"]
[PlyCount "56"]
[EventDate "2019.01.27"]
[EventType "schev"]
[EventCountry "TUR"]
[SourceTitle "playchess.com"]
[Source "ChessBase"]
[SourceQuality "1"]
[TimeControl "5400+30"]

1. e4 {[%emt 0:02:30]} c5 {[%emt 0:00:30]} 2. Nc3 {[%emt 0:00:30]} Nc6 {[%emt 0:00:00]} 3. g3 {[%emt 0:00:30]} g6 {[%emt 0:00:00]} 4. Bg2 {[%emt 0:00:00]} Bg7 {[%emt 0:00:30]} 5. f4 {[%emt 0:00:00]} d6 {[%emt 0:00:30]} 6. d3 {[%emt 0:00:30]} e6 {[%emt 0:00:00]} 7. Nf3 {[%emt 0:00:30]} Nge7 {[%emt 0:00:00]} 8. O-O {[%emt 0:00:30]} O-O {[%emt 0:00:00]} 9. Be3 {[%emt 0:00:30]} Nd4 {[%emt 0:02:00]} 10. Bxd4 {[%emt 0:01:30] B25: Closed Sicilian: 3 g3, lines without early Be3} (10. Qd2 Rb8 11. Rae1 b5 12. Nd1 b4 13. g4 f5 14. gxf5 gxf5 15. Ng5 h6 16. Nh3 Ng6 17. c3 bxc3 18. bxc3 Nb5 19. exf5 exf5 20. a4 {½-½ (45) Pridorozhni,A (2565)-Sarana,A (2541) Sochi 2017}) 10... cxd4 {[%emt 0:00:30]} 11. Ne2 {[%emt 0:00:00]} e5 {[%emt 0:00:00]} 12. fxe5 {[%emt 0:09:00]} dxe5 {[%emt 0:00:00]} 13. c4 $146 {[%emt 0:00:00]} ({Predecessor:} 13. c3 Nc6 14. cxd4 Nxd4 15. Nfxd4 exd4 16. Qd2 Bd7 17. Qb4 Bc6 {0-1 (26) Abdullah,A-Samadi,A Dubai 2003}) 13... f5 {[%emt 0:00:30]} 14. Nd2 {[%emt 0:07:00]} Be6 {[%emt 0:03:30]} 15. b4 {[%emt 0:00:30]} Qd7 {[%emt 0:00:30]} 16. a3 {[%emt 0:00:30]} Rac8 {[%emt 0:07:30]} 17. Nc1 {[%emt 0:06:30]} b6 {[%emt 0:00:30]} 18. Ncb3 {[%emt 0:00:00]} fxe4 {[%emt 0:00:30]} 19. Rxf8+ {[%emt 0:03:00]} Rxf8 {[%emt 0:00:30]} 20. dxe4 {[%emt 0:00:30]} Bh6 $17 {[%emt 0:04:30]} 21. Qe2 {[%emt 0:08:30]} Be3+ {[%emt 0:00:30]} 22. Kh1 {[%emt 0:05:30]} Rf2 {[%emt 0:01:30]} 23. Qd3 {[%emt 0:02:30]} Bh3 {[%emt 0:00:30]} 24. Bf3 {[%emt 0:07:30]} Qe8 {[%emt 0:02:30]} 25. Rg1 {[%emt 0:04:30]} Qf7 {[%emt 0:02:30]} 26. Be2 {[%emt 0:10:30]} Qf8 {[%emt 0:01:30]} 27. Nf1 {[%emt 0:04:30]} Qh6 {[%emt 0:01:30]} 28. Nxe3 {[%emt 0:00:00]} Rxh2+ {[%emt 0:00:30]} 0-1

[Event "IM Marmaris Karia IV 2019"]
[Site "Marmaris"]
[Date "2019.01.30"]
[Round "8.3"]
[White "Haussernot, Cecile"]
[Black "Hamidi, Amir Mohammad"]
[Result "0-1"]
[ECO "B96"]
[WhiteElo "2157"]
[BlackElo "2221"]
[Annotator "NA"]
[PlyCount "64"]
[EventDate "2019.01.27"]
[EventType "schev"]
[EventCountry "TUR"]
[SourceTitle "playchess.com"]
[Source "ChessBase"]
[SourceQuality "1"]
[TimeControl "5400+30"]

1. e4 {[%emt 0:06:30]} c5 {[%emt 0:00:30]} 2. Nf3 {[%emt 0:00:00]} d6 {[%emt 0:00:00]} 3. d4 {[%emt 0:00:00]} cxd4 {[%emt 0:00:00]} 4. Nxd4 {[%emt 0:00:00]} Nf6 {[%emt 0:00:00]} 5. Nc3 {[%emt 0:00:00]} a6 {[%emt 0:00:00]} 6. Bg5 {[%emt 0:00:30]} e6 {[%emt 0:00:00]} 7. f4 {[%emt 0:00:30]} h6 {[%emt 0:00:00]} 8. Bh4 {[%emt 0:00:00]} Qb6 {[%emt 0:00:30]} 9. a3 {[%emt 0:01:00]} Nbd7 $146 {[%emt 0:00:00] B96: Sicilian Najdorf: 6 Bg5 e6 7 f4, lines other than 7...Qb6 and 7...Be7} ({Predecessor:} 9... Be7 10. Bf2 Qc7 11. Qf3 Nbd7 12. Bd3 b5 13. O-O {0-1 (61) Solak,D (2611)-Vachier Lagrave,M (2742) Rhodes 2013}) 10. Bf2 {[%emt 0:00:30]} Qc7 {[%emt 0:00:00]} 11. Qf3 {[%emt 0:04:30]} b5 {[%emt 0:00:30]} 12. Bd3 {[%emt 0:00:30]} Bb7 {[%emt 0:00:30]} 13. O-O {[%emt 0:00:30]} Be7 {[%emt 0:01:30]} 14. f5 {[%emt 0:06:30]} ({Predecessor:} 14. Qh3 O-O 15. Rae1 Rfe8 16. Kh1 Nc5 17. Bh4 Nxd3 18. cxd3 {0-1 (61) Solak,D (2611)-Vachier Lagrave,M (2742) Rhodes 2013}) 14... e5 {[%emt 0:03:30]} 15. Nde2 {[%emt 0:00:30]} Nb6 {[%emt 0:00:30]} 16. b3 {[%emt 0:12:30]} d5 {[%emt 0:00:30]} 17. exd5 {[%emt 0:00:30]} Nbxd5 {[%emt 0:00:00]} 18. Ne4 {[%emt 0:01:30]} O-O {[%emt 0:07:00]} 19. N2g3 {[%emt 0:02:30]} Rac8 {[%emt 0:05:30]} 20. c4 {[%emt 0:07:30]} bxc4 {[%emt 0:03:30]} 21. bxc4 {[%emt 0:01:30]} Nc3 {[%emt 0:02:30]} 22. Nxf6+ {[%emt 0:07:30]} Bxf6 {[%emt 0:00:30]} 23. Qg4 {[%emt 0:00:00]} Rfd8 {[%emt 0:04:30]} 24. Nh5 {[%emt 0:01:00]} Rxd3 {[%emt 0:00:00]} 25. Nxf6+ {[%emt 0:00:30]} Kh8 {[%emt 0:00:00]} 26. Nh5 {[%emt 0:00:30]} f6 {[%emt 0:00:30]} 27. Bh4 {[%emt 0:04:30]} Qf7 {[%emt 0:00:30]} 28. Bg3 {[%emt 0:05:30]} Rxc4 {[%emt 0:01:30]} 29. Qh3 {[%emt 0:00:30]} Ne2+ {[%emt 0:00:00]} 30. Kh1 {[%emt 0:00:00]} Nf4 {[%emt 0:00:00]} 31. Nxf4 {[%emt 0:05:00]} exf4 {[%emt 0:00:30]} 32. Qg4 {[%emt 0:00:30]} f3 {[%emt 0:00:30]} 0-1

[Event "IM Marmaris Karia IV 2019"]
[Site "Marmaris"]
[Date "2019.01.30"]
[Round "8.5"]
[White "Pacher, Milan"]
[Black "Alaz, Ahmet Efekan"]
[Result "1/2-1/2"]
[ECO "D11"]
[WhiteElo "2442"]
[BlackElo "2218"]
[Annotator "NA"]
[PlyCount "129"]
[EventDate "2019.01.27"]
[EventType "schev"]
[EventCountry "TUR"]
[SourceTitle "playchess.com"]
[Source "ChessBase"]
[SourceQuality "1"]
[TimeControl "5400+30"]

1. d4 {[%emt 0:01:30]} d5 {[%emt 0:00:30]} 2. c4 {[%emt 0:00:00]} c6 {[%emt 0:00:00]} 3. Nf3 {[%emt 0:00:00]} Nf6 {[%emt 0:00:00]} 4. e3 {[%emt 0:00:30]} Bg4 {[%emt 0:01:30]} 5. Nc3 {[%emt 0:00:00]} e6 {[%emt 0:00:30]} 6. Qb3 {[%emt 0:00:00]} Qb6 {[%emt 0:02:30]} 7. Nh4 {[%emt 0:00:30]} Nbd7 {[%emt 0:03:30]} 8. h3 {[%emt 0:01:30]} Bh5 {[%emt 0:01:30]} 9. g4 {[%emt 0:00:30]} Bg6 {[%emt 0:00:00]} 10. Nxg6 {[%emt 0:00:30]} hxg6 {[%emt 0:00:00]} 11. Bg2 {[%emt 0:00:30]} Be7 {[%emt 0:21:30]} 12. Bd2 {[%emt 0:01:30]} O-O {[%emt 0:00:30]} 13. cxd5 {[%emt 0:04:30]} Qxb3 {[%emt 0:04:30]} 14. axb3 {[%emt 0:00:00]} exd5 {[%emt 0:03:30]} 15. Ke2 {[%emt 0:04:00]} Nb6 {[%emt 0:06:30]} 16. Rhc1 {[%emt 0:00:30]} Bb4 {[%emt 0:02:30]} 17. Na4 {[%emt 0:02:30]} Bxd2 {[%emt 0:01:30]} 18. Kxd2 {[%emt 0:00:00]} Nbd7 {[%emt 0:01:30]} 19. b4 {[%emt 0:01:00]} a6 {[%emt 0:00:30]} 20. Nc5 {[%emt 0:00:30]} Nxc5 {[%emt 0:02:30]} 21. bxc5 {[%emt 0:00:00]} Rfe8 {[%emt 0:00:30]} 22. f3 {[%emt 0:00:00]} Re7 {[%emt 0:00:30]} 23. h4 {[%emt 0:05:30]} Rae8 {[%emt 0:03:30]} 24. Rc3 {[%emt 0:00:00]} Nh7 {[%emt 0:02:30]} 25. g5 {[%emt 0:01:00]} Nf8 {[%emt 0:05:30]} 26. Bh3 {[%emt 0:01:30]} Ne6 {[%emt 0:00:30]} 27. Rb3 {[%emt 0:00:30]} Rc7 {[%emt 0:02:30]} 28. f4 {[%emt 0:01:30]} Nd8 {[%emt 0:05:30]} 29. Bg4 {[%emt 0:01:30]} Ne6 {[%emt 0:09:11]} 30. Rh1 {[%emt 0:00:30]} Kf8 {[%emt 0:01:34]} 31. Kc3 {[%emt 0:02:30]} Nd8 {[%emt 0:11:10]} 32. Kb4 {[%emt 0:00:00]} Ke7 {[%emt 0:02:54]} 33. Ka5 {[%emt 0:00:00]} f5 {[%emt 0:00:32]} 34. Kb6 {[%emt 0:04:30]} Ne6 {[%emt 0:02:18]} 35. Bf3 {[%emt 0:00:30]} Ra8 {[%emt 0:00:19]} 36. Ra3 {[%emt 0:01:30]} Rh8 {[%emt 0:00:46]} 37. Raa1 {[%emt 0:00:30]} Kd8 {[%emt 0:03:07]} 38. h5 {[%emt 0:00:30]} gxh5 {[%emt 0:00:31]} 39. Rxh5 {[%emt 0:00:30]} Rxh5 {[%emt 0:00:18]} 40. Bxh5 {[%emt 0:00:00]} Nf8 $16 {[%emt 0:00:16]} 41. Rh1 {[%emt 0:00:00]} g6 {[%emt 0:00:46]} 42. Bd1 {[%emt 0:01:30]} Nh7 {[%emt 0:00:32]} 43. Rh6 {[%emt 0:01:30]} Nf8 {[%emt 0:00:27]} 44. Rh8 {[%emt 0:00:30]} Rf7 {[%emt 0:00:02]} 45. Rg8 {[%emt 0:00:30]} Ke8 {[%emt 0:00:48]} 46. Rh8 {[%emt 0:03:30]} Re7 {[%emt 0:00:35]} 47. b4 {[%emt 0:01:30]} Rf7 {[%emt 0:00:40]} 48. Ka7 {[%emt 0:01:30]} Rg7 {[%emt 0:00:40]} 49. Kb8 {[%emt 0:00:30]} Rd7 {[%emt 0:00:23]} 50. Kc8 {[%emt 0:01:30]} Re7 {[%emt 0:00:05]} 51. Rh2 {[%emt 0:02:30]} Rg7 {[%emt 0:00:58]} 52. Be2 {[%emt 0:02:30]} Re7 {[%emt 0:00:12]} 53. Bf1 {[%emt 0:00:00]} Rg7 {[%emt 0:00:21]} 54. Ra2 {[%emt 0:02:00]} Ne6 {[%emt 0:00:31]} 55. Kb8 {[%emt 0:02:30]} Nd8 {[%emt 0:00:53]} 56. Rh2 {[%emt 0:00:30]} Ne6 {[%emt 0:00:19]} 57. Bd3 {[%emt 0:00:30]} Re7 {[%emt 0:00:39]} 58. Rh3 {[%emt 0:00:30]} Nf8 {[%emt 0:00:13]} 59. Kc8 {[%emt 0:00:30]} Ne6 {[%emt 0:00:36]} 60. Rh1 {[%emt 0:01:30]} Rc7+ {[%emt 0:00:14]} 61. Kb8 {[%emt 0:00:00]} Re7 {[%emt 0:00:05]} 62. Ka7 {[%emt 0:00:00]} Nf8 {[%emt 0:00:53]} 63. Re1 {[%emt 0:01:30]} Kd8 {[%emt 0:00:41]} 64. Bc2 {[%emt 0:01:30]} Kc7 {[%emt 0:00:23]} 65. Re2 {[%emt 0:01:30]} 1/2-1/2

[Event "IM Marmaris Karia IV 2019"]
[Site "Marmaris"]
[Date "2019.01.31"]
[Round "10.1"]
[White "Haussernot, Cecile"]
[Black "Ahmadzada, Ahmad"]
[Result "0-1"]
[ECO "B80"]
[WhiteElo "2157"]
[BlackElo "2337"]
[Annotator "NA RC"]
[PlyCount "80"]
[EventDate "2019.01.27"]
[EventType "schev"]
[EventCountry "TUR"]
[SourceTitle "playchess.com"]
[Source "ChessBase"]
[SourceQuality "1"]
[TimeControl "5400+30"]

1. e4 {[%emt 0:01:30]} c5 {[%emt 0:00:30]} 2. Nf3 {[%emt 0:00:30]} e6 {[%emt 0:00:30]} 3. d4 {[%emt 0:00:00]} cxd4 {[%emt 0:00:00]} 4. Nxd4 {[%emt 0:00:00]} d6 {[%emt 0:00:00]} 5. Nc3 {[%emt 0:00:30]} Nc6 {[%emt 0:00:30]} 6. Be3 {[%emt 0:01:30]} Nf6 {[%emt 0:00:00]} 7. f3 {[%emt 0:06:30]} Be7 {[%emt 0:00:00]} 8. Qd2 $14 {[%emt 0:01:30]} O-O {[%emt 0:00:30]} 9. g4 {[%emt 0:06:30]} a6 {[%emt 0:04:30]} 10. g5 {[%emt 0:04:30]} Nd7 {[%emt 0:00:30]} 11. f4 {[%emt 0:01:30]} Nxd4 {[%emt 0:11:30]} 12. Qxd4 {[%emt 0:03:30]} b5 {[%emt 0:04:30]} 13. O-O-O {[%emt 0:06:30]} Bb7 {[%emt 0:02:30]} 14. Bg2 {[%emt 0:02:30]} Rc8 {[%emt 0:03:30]} 15. h4 {[%emt 0:02:30]} Qa5 {[%emt 0:03:30]} 16. Kb1 {[%emt 0:07:30]} Rc4 {[%emt 0:03:30]} 17. Qd3 {[%emt 0:00:30]} Rfc8 {[%emt 0:00:30]} 18. Ne2 {[%emt 0:10:30]} Rxc2 {[%emt 0:11:30]} 19. Bd2 {[%emt 0:00:30]} b4 {[%emt 0:01:30]} 20. Nd4 {[%emt 0:00:30]} R2c4 {[%emt 0:16:30]} 21. h5 {[%emt 0:02:30]} d5 {[%emt 0:21:57]} 22. Nb3 {[%emt 0:05:30]} Qb5 {[%emt 0:01:23]} 23. g6 {[%emt 0:04:30]} dxe4 {[%emt 0:01:03]} 24. gxf7+ {[%emt 0:00:30]} Kxf7 {[%emt 0:00:27]} 25. Qg3 {[%emt 0:00:30]} Nf6 {[%emt 0:00:53]} 26. Bf1 {[%emt 0:00:30]} e3 {[%emt 0:00:57]} 27. Bxc4 {[%emt 0:01:30]} Qxc4 {[%emt 0:00:35]} 28. Rhg1 {[%emt 0:00:30]} Nd5 {[%emt 0:05:46]} 29. Qxg7+ {[%emt 0:03:30]} Ke8 {[%emt 0:00:05]} 30. Nd4 {[%emt 0:04:30]} Qd3+ {[%emt 0:01:23]} 31. Ka1 {[%emt 0:00:30]} exd2 {[%emt 0:01:07]} 32. Qg8+ {[%emt 0:00:00]} Kd7 {[%emt 0:00:27]} 33. Qxe6+ {[%emt 0:00:00]} Kc7 {[%emt 0:00:26]} 34. Nf5 {[%emt 0:00:30]} Bf8 {[%emt 0:02:58]} 35. Rg3 {[%emt 0:03:30]} Qc2 {[%emt 0:01:11]} 36. Rg7+ {[%emt 0:00:30]} Kb8 {[%emt 0:00:05]} 37. Rxb7+ {[%emt 0:00:00]} Kxb7 {[%emt 0:00:03]} 38. Qxd5+ {[%emt 0:00:00]} Kb6 {[%emt 0:01:18]} 39. Qd4+ {[%emt 0:01:44]} Bc5 {[%emt 0:00:35]} 40. Qf6+ {[%emt 0:00:20]} Ka5 {[%emt 0:00:38]} 0-1

[Event "IM Marmaris Karia IV 2019"]
[Site "Marmaris"]
[Date "2019.01.31"]
[Round "10.4"]
[White "Rzayev, Bahruz"]
[Black "Mammadova, Narmin"]
[Result "1/2-1/2"]
[ECO "C67"]
[WhiteElo "2359"]
[BlackElo "2219"]
[Annotator "RC"]
[PlyCount "31"]
[EventDate "2019.01.27"]
[EventType "schev"]
[EventCountry "TUR"]
[SourceTitle "playchess.com"]
[Source "ChessBase"]
[SourceQuality "1"]
[TimeControl "5400+30"]

1. e4 {[%emt 0:00:30]} e5 {[%emt 0:00:30]} 2. Nf3 {[%emt 0:00:00]} Nc6 {[%emt 0:00:00]} 3. Bb5 {[%emt 0:00:00]} Nf6 {[%emt 0:00:00]} 4. O-O {[%emt 0:00:00]} Nxe4 {[%emt 0:00:00]} 5. d4 {[%emt 0:00:00]} Nd6 {[%emt 0:00:00]} 6. dxe5 {[%emt 0:00:00]} Nxb5 {[%emt 0:00:00]} 7. a4 {[%emt 0:00:00]} Nbd4 {[%emt 0:00:00]} 8. Nxd4 {[%emt 0:00:00]} Nxd4 {[%emt 0:00:30]} 9. Qxd4 {[%emt 0:00:00]} d5 {[%emt 0:00:00]} 10. exd6 {[%emt 0:00:30]} Qxd6 {[%emt 0:00:00]} 11. Qe4+ {[%emt 0:00:00]} Qe6 {[%emt 0:00:00]} 12. Qd4 {[%emt 0:00:00]} Qd6 {[%emt 0:00:00]} 13. Qe4+ {[%emt 0:00:00]} Qe6 {[%emt 0:00:00]} 14. Qd4 {[%emt 0:00:00]} Qd6 {[%emt 0:00:00]} 15. Qe4+ {[%emt 0:00:00]} Qe6 {[%emt 0:00:30]} 16. Qd4 {[%emt 0:01:00]} 1/2-1/2

[Event "IM Marmaris Karia IV 2019"]
[Site "Marmaris"]
[Date "2019.01.31"]
[Round "10.5"]
[White "Darban, Morteza"]
[Black "Alaz, Ahmet Efekan"]
[Result "0-1"]
[ECO "D03"]
[WhiteElo "2333"]
[BlackElo "2218"]
[Annotator "NA RC"]
[PlyCount "66"]
[EventDate "2019.01.27"]
[EventType "schev"]
[EventCountry "TUR"]
[SourceTitle "playchess.com"]
[Source "ChessBase"]
[SourceQuality "1"]
[TimeControl "5400+30"]

1. d4 {[%emt 0:00:30]} d5 {[%emt 0:00:30]} 2. Nf3 {[%emt 0:00:00]} Nf6 {[%emt 0:00:00]} 3. Bg5 {[%emt 0:01:00]} Ne4 {[%emt 0:01:00]} 4. Bh4 {[%emt 0:03:30]} Qd6 {[%emt 0:01:30]} 5. c3 {[%emt 0:03:30]} Qh6 {[%emt 0:06:30]} 6. Nbd2 {[%emt 0:07:30]} g5 {[%emt 0:03:30]} 7. Bg3 {[%emt 0:01:30]} Nxg3 {[%emt 0:00:30]} 8. fxg3 {[%emt 0:00:30]} g4 {[%emt 0:01:30]} 9. Ne5 {[%emt 0:00:30]} Nc6 {[%emt 0:06:30]} 10. e4 {[%emt 0:03:30]} Nxe5 {[%emt 0:07:30]} 11. dxe5 {[%emt 0:00:30]} dxe4 {[%emt 0:00:30]} 12. Nxe4 {[%emt 0:00:30]} Bg7 {[%emt 0:02:30]} 13. Qd4 {[%emt 0:01:30]} Be6 {[%emt 0:08:30]} 14. Bb5+ {[%emt 0:02:30]} c6 {[%emt 0:00:30]} 15. Ba4 {[%emt 0:00:30]} Rd8 {[%emt 0:03:30]} 16. Qxa7 {[%emt 0:06:30]} Bf5 {[%emt 0:05:30]} 17. Rd1 {[%emt 0:00:30]} O-O {[%emt 0:01:30]} 18. Nf2 {[%emt 0:00:30]} Ra8 {[%emt 0:00:30]} 19. Qd4 {[%emt 0:00:30]} c5 {[%emt 0:00:30]} 20. Qc4 {[%emt 0:00:30]} Qe3+ {[%emt 0:01:30]} 21. Kf1 {[%emt 0:00:30]} Be6 {[%emt 0:00:30]} 22. Qb5 {[%emt 0:01:30]} Rfd8 {[%emt 0:02:30]} 23. Re1 {[%emt 0:01:30]} Qd2 {[%emt 0:02:30]} 24. Ne4 {[%emt 0:01:30]} Qd5 {[%emt 0:00:30]} 25. Bb3 {[%emt 0:01:30]} c4 {[%emt 0:01:30]} 26. Qxd5 {[%emt 0:01:30]} Bxd5 {[%emt 0:03:30]} 27. Bc2 {[%emt 0:00:30]} Rxa2 {[%emt 0:00:30]} 28. Rb1 {[%emt 0:00:30]} Bxe5 {[%emt 0:00:30]} 29. Kf2 {[%emt 0:01:30]} f5 {[%emt 0:00:30]} 30. Nd2 {[%emt 0:01:30]} Bxc3 {[%emt 0:02:30]} 31. Rhd1 {[%emt 0:00:30]} Bd4+ {[%emt 0:00:30]} 32. Kf1 {[%emt 0:00:30]} Bxb2 {[%emt 0:01:30]} 33. Ke2 {[%emt 0:00:30]} e6 {[%emt 0:00:30]} 0-1